fUST/lending_fUST_20260527
["ID","MTS","AMOUNT","RATE_DAILY","PERIOD"]
[423134054,1779877838000,-500.0,8.801e-05,2]
[423134052,1779877838000,-324.40367812,8.801e-05,2]
[423134101,1779877838000,-367.88040388,8.891e-05,2]
[423134078,1779877838000,-500.0,8.891e-05,2]
[423134099,1779877838000,-573.14403511,8.891e-05,2]
[423134059,1779877838000,-500.0,8.891e-05,2]
[423134100,1779877838000,-500.0,8.891e-05,2]
[423134102,1779877838000,-500.0,8.891e-05,2]
[423134131,1779877838000,-384.01,9.165e-05,2]
[423134130,1779877838000,-500.0,9.165e-05,2]
[423134127,1779877838000,-516.72,9.075e-05,2]
[423134129,1779877838000,-508.8,9.165e-05,2]
[423134128,1779877838000,-500.0,9.075e-05,2]
[423134126,1779877838000,-590.8,9.075e-05,2]
[423134124,1779877838000,-326.065895,8.977e-05,2]
[423134125,1779877838000,-500.0,9.075e-05,2]
[423134132,1779877838000,-500.0,9.165e-05,2]
[423134121,1779877838000,-218.9960387,8.977e-05,2]
[423134122,1779877838000,-326.0859053,8.977e-05,2]
[423134123,1779877838000,-456.6813334,8.977e-05,2]
[423134119,1779877838000,-160.0,8.942e-05,2]
[423134117,1779877838000,-500.0,8.892e-05,2]
[423134120,1779877838000,-456.6078422,8.977e-05,2]
[423134113,1779877838000,-500.0,8.892e-05,2]
[423134104,1779877838000,-500.0,8.891e-05,2]
[423134103,1779877838000,-1026.7493,8.891e-05,2]
[423134106,1779877838000,-500.0,8.891e-05,2]
[423134105,1779877838000,-1736.26,8.891e-05,2]
[423134118,1779877838000,-500.0,8.892e-05,2]
[423134107,1779877838000,-500.0,8.891e-05,2]
[423134110,1779877838000,-500.0,8.892e-05,2]
[423134108,1779877838000,-500.0,8.892e-05,2]
[423134112,1779877838000,-500.0,8.892e-05,2]
[423134111,1779877838000,-500.0,8.892e-05,2]
[423134116,1779877838000,-500.0,8.892e-05,2]
[423134114,1779877838000,-500.0,8.892e-05,2]
[423134115,1779877838000,-500.0,8.892e-05,2]
[423134109,1779877838000,-500.0,8.892e-05,2]
[423134139,1779877839000,-548.94,9.165e-05,2]
[423134133,1779877839000,-500.0,9.165e-05,2]
[423134136,1779877839000,-500.0,9.165e-05,2]
[423134134,1779877839000,-500.0,9.165e-05,2]
[423134137,1779877839000,-500.0,9.165e-05,2]
[423134135,1779877839000,-500.0,9.165e-05,2]
[423134141,1779877839000,-502.46,9.165e-05,2]
[423134147,1779877839000,-556.24025353,9.165e-05,2]
[423134140,1779877839000,-696.79,9.165e-05,2]
[423134138,1779877839000,-500.0,9.165e-05,2]
[423134143,1779877839000,-500.0,9.165e-05,2]
[423134145,1779877839000,-500.0,9.165e-05,2]
[423134146,1779877839000,-500.0,9.165e-05,2]
[423134144,1779877839000,-500.0,9.165e-05,2]
[423134142,1779877839000,-500.0,9.165e-05,2]
[423134171,1779877840000,-1736.26,9.165e-05,2]
[423134170,1779877840000,-105.96972596,9.165e-05,2]
[423134172,1779877840000,-264.17171821,9.165e-05,2]
[423134168,1779877840000,-470.50904647,9.165e-05,2]
[423134169,1779877840000,-484.13027404,9.165e-05,2]
[423134277,1779877846000,-159.15083661,9.166e-05,2]
[423134274,1779877846000,-500.0,9.165e-05,2]
[423134273,1779877846000,-46.40635753,9.165e-05,2]
[423134272,1779877846000,-287.0,9.075e-05,2]
[423134276,1779877846000,-500.0,9.166e-05,2]
[423134269,1779877846000,-500.0,8.617e-05,2]
[423134270,1779877846000,-500.0,8.801e-05,2]
[423134268,1779877846000,-500.0,8.527e-05,2]
[423134266,1779877846000,-500.0,8.253e-05,2]
[423134271,1779877846000,-500.0,8.891e-05,2]
[423134279,1779877846000,-500.0,9.349e-05,2]
[423134267,1779877846000,-500.0,8.253e-05,2]
[423134275,1779877846000,-500.0,9.165e-05,2]
[423134280,1779877846000,-508.8,9.439e-05,2]
[423134281,1779877846000,-500.0,9.439e-05,2]
[423134285,1779877846000,-500.0,9.439e-05,2]
[423134282,1779877846000,-500.0,9.439e-05,2]
[423134284,1779877846000,-696.79,9.439e-05,2]
[423134283,1779877846000,-500.0,9.439e-05,2]
[423134286,1779877846000,-541.48,9.439e-05,2]
[423134287,1779877846000,-500.0,9.439e-05,2]
[423134288,1779877846000,-298.34,9.439e-05,2]
[423134289,1779877846000,-500.0,9.439e-05,2]
[423134290,1779877846000,-610.97774184,9.439e-05,2]
[423134278,1779877846000,-500.0,9.349e-05,2]
[423134292,1779877892000,-3183.85474524,8.442e-05,2]
[423134342,1779878414000,-1000.0,7.524e-05,2]
[423134487,1779879032000,-300.0,8.417e-05,2]
[423134466,1779879032000,-326.065895,8.155e-05,2]
[423134462,1779879032000,-305.7116801,7.562e-05,2]
[423134460,1779879032000,-5000.0,7.375e-05,2]
[423134464,1779879032000,-176.855538,7.676e-05,2]
[423134471,1779879032000,-326.065895,8.155e-05,2]
[423134473,1779879032000,-456.7502812,8.155e-05,2]
[423134475,1779879032000,-500.0,8.253e-05,2]
[423134486,1779879032000,-300.0,8.417e-05,2]
[423134489,1779879032000,-300.0,8.417e-05,2]
[423134484,1779879032000,-300.0,8.417e-05,2]
[423134476,1779879032000,-379.0,8.416e-05,2]
[423134491,1779879032000,-300.0,8.417e-05,2]
[423134503,1779879032000,-30.66202376,8.417e-05,2]
[423134499,1779879032000,-300.0,8.417e-05,2]
[423134497,1779879032000,-300.0,8.417e-05,2]
[423134495,1779879032000,-300.0,8.417e-05,2]
[423134501,1779879032000,-300.0,8.417e-05,2]
[423134493,1779879032000,-300.0,8.417e-05,2]
[423134482,1779879032000,-300.0,8.417e-05,2]
[423134478,1779879032000,-300.0,8.417e-05,2]
[423134480,1779879032000,-300.0,8.417e-05,2]
[423134605,1779879038000,-500.0,8.515e-05,2]
[423134606,1779879038000,-500.0,8.527e-05,2]
[423134602,1779879038000,-580.66,8.515e-05,2]
[423134603,1779879038000,-500.0,8.515e-05,2]
[423134608,1779879038000,-500.0,8.788e-05,2]
[423134604,1779879038000,-1519.23,8.515e-05,2]
[423134601,1779879038000,-500.0,8.515e-05,2]
[423134600,1779879038000,-451.37985336,8.515e-05,2]
[423134595,1779879038000,-248.53483167,8.515e-05,2]
[423134597,1779879038000,-500.0,8.515e-05,2]
[423134598,1779879038000,-500.0,8.515e-05,2]
[423134596,1779879038000,-500.0,8.515e-05,2]
[423134594,1779879038000,-500.0,8.515e-05,2]
[423134593,1779879038000,-300.0,8.417e-05,2]
[423134592,1779879038000,-269.33797624,8.417e-05,2]
[423134607,1779879038000,-152.0,8.718e-05,2]
[423134599,1779879038000,-48.62014664,8.515e-05,2]
[423134609,1779879038000,-500.0,8.789e-05,2]
[423134624,1779879038000,-500.0,8.801e-05,2]
[423134615,1779879038000,-500.0,8.789e-05,2]
[423134634,1779879038000,-326.065895,8.975e-05,2]
[423134633,1779879038000,-326.0859053,8.975e-05,2]
[423134610,1779879038000,-500.0,8.789e-05,2]
[423134632,1779879038000,-196.8815261,8.975e-05,2]
[423134622,1779879038000,-1519.23,8.789e-05,2]
[423134629,1779879038000,-326.065895,8.972e-05,2]
[423134626,1779879038000,-160.0,8.945e-05,2]
[423134628,1779879038000,-179.560675,8.972e-05,2]
[423134631,1779879038000,-326.065895,8.975e-05,2]
[423134625,1779879038000,-152.0,8.919e-05,2]
[423134623,1779879038000,-500.0,8.789e-05,2]
[423134627,1779879038000,-160.0,8.945e-05,2]
[423134619,1779879038000,-500.0,8.789e-05,2]
[423134630,1779879038000,-151.0,8.975e-05,2]
[423134620,1779879038000,-580.66,8.789e-05,2]
[423134612,1779879038000,-500.0,8.789e-05,2]
[423134611,1779879038000,-500.0,8.789e-05,2]
[423134621,1779879038000,-500.0,8.789e-05,2]
[423134644,1779879039000,-500.0,9.063e-05,2]
[423134655,1779879039000,-510.88943752,9.199e-05,2]
[423134640,1779879039000,-500.0,9.063e-05,2]
[423134641,1779879039000,-500.0,9.063e-05,2]
[423134638,1779879039000,-357.5794412,9.058e-05,2]
[423134642,1779879039000,-500.0,9.063e-05,2]
[423134636,1779879039000,-326.0859053,8.977e-05,2]
[423134635,1779879039000,-161.83500946,8.977e-05,2]
[423134643,1779879039000,-500.0,9.063e-05,2]
[423134651,1779879039000,-500.0,9.075e-05,2]
[423134637,1779879039000,-326.065895,8.977e-05,2]
[423134647,1779879039000,-204.58,9.063e-05,2]
[423134639,1779879039000,-500.0,9.062e-05,2]
[423134645,1779879039000,-500.0,9.063e-05,2]
[423134659,1779879039000,-230.83133264,9.2e-05,2]
[423134656,1779879039000,-164.36976786,9.2e-05,2]
[423134658,1779879039000,-208.40999086,9.2e-05,2]
[423134657,1779879039000,-199.93156748,9.2e-05,2]
[423134652,1779879039000,-500.0,9.199e-05,2]
[423134649,1779879039000,-1225.62378789,9.063e-05,2]
[423134660,1779879039000,-9666.71373018,9.335e-05,2]
[423134653,1779879039000,-500.0,9.199e-05,2]
[423134650,1779879039000,-500.0,9.063e-05,2]
[423134654,1779879039000,-500.0,9.199e-05,2]
[423134646,1779879039000,-580.66,9.063e-05,2]
[423134648,1779879039000,-293.60621211,9.063e-05,2]
[423134686,1779879040000,-128.11728746,9.337e-05,2]
[423134683,1779879040000,-500.0,9.337e-05,2]
[423134682,1779879040000,-500.0,9.337e-05,2]
[423134685,1779879040000,-229.38010567,9.337e-05,2]
[423134684,1779879040000,-50.95989433,9.337e-05,2]
[423134680,1779879040000,-291.45,8.515e-05,2]
[423134681,1779879040000,-500.0,9.336e-05,2]
[423134710,1779879043000,-1225.71425379,8.333e-05,2]
[423134709,1779879043000,-936.26476405,8.333e-05,2]
[423134719,1779879044000,-1519.23,9.337e-05,2]
[423134717,1779879044000,-500.0,9.337e-05,2]
[423134721,1779879044000,-902.93604799,9.339e-05,2]
[423134716,1779879044000,-500.0,9.337e-05,2]
[423134715,1779879044000,-371.88271254,9.337e-05,2]
[423134718,1779879044000,-580.66,9.337e-05,2]
[423134720,1779879044000,-500.0,9.337e-05,2]
[423134714,1779879044000,-500.0,9.336e-05,2]
[423134713,1779879044000,-500.0,9.062e-05,2]
[423134711,1779879044000,-83.37970487,8.333e-05,2]
[423134712,1779879044000,-500.0,8.788e-05,2]
[423134738,1779879046000,-9567.49650068,9.333e-05,2]
[423134736,1779879046000,-7408.94175514,9.333e-05,2]
[423134737,1779879046000,-2939.19112966,9.333e-05,2]
[423134735,1779879046000,-3665.9699856,9.333e-05,2]
[423134734,1779879046000,-442.74920573,8.515e-05,2]
[423134790,1779880087000,3440.0,0.00019178,120]
[423134887,1779880238000,-391.30211656,7.624e-05,2]
[423134888,1779880238000,-299.5974465,7.74e-05,2]
[423134889,1779880238000,-32.45241834,8.098e-05,2]
[423134886,1779880238000,-2126.59113567,7.548e-05,2]
[423134885,1779880238000,-2873.40886433,7.548e-05,2]
[423135049,1779880247000,-94.62333136,8.098e-05,2]
[423135052,1779880247000,-269.59582555,8.098e-05,2]
[423135048,1779880247000,-372.9242503,8.098e-05,2]
[423135050,1779880247000,-500.0,8.098e-05,2]
[423135051,1779880247000,-500.0,8.098e-05,2]
[423135054,1779880247000,-160.0,9.018e-05,2]
[423135053,1779880247000,-152.0,8.911e-05,2]
[423135055,1779880247000,-492.9731614,9.021e-05,2]
[423135056,1779880247000,-326.065895,9.021e-05,2]
[423135059,1779880247000,-99.72178669,9.218e-05,2]
[423135058,1779880247000,-500.0,9.218e-05,2]
[423135060,1779880247000,-307.90081957,9.218e-05,2]
[423135062,1779880247000,-455.15874793,9.218e-05,2]
[423135063,1779880247000,-2258.16123286,9.219e-05,2]
[423135061,1779880247000,-500.0,9.218e-05,2]
[423135057,1779880247000,-500.0,9.218e-05,2]
[423135074,1779880412000,406.96664526,0.0001438,30]
[423135072,1779880412000,406.96664526,0.0001434,30]
[423135076,1779880413000,406.96664526,0.0001446,30]
[423135075,1779880413000,406.96664526,0.0001442,30]
[423135078,1779880414000,406.96664526,0.00014539,30]
[423135077,1779880414000,406.96664526,0.00014499,30]
[423135080,1779880415000,406.96664526,0.00014619,60]
[423135079,1779880415000,406.96664526,0.00014579,60]
[423135082,1779880416000,406.96664526,0.00014699,60]
[423135081,1779880416000,406.96664526,0.00014659,60]
[423135084,1779880417000,406.96664526,0.00014779,60]
[423135083,1779880417000,406.96664526,0.00014739,60]
[423135086,1779880418000,406.96664526,0.00014859,120]
[423135085,1779880418000,406.96664526,0.00014819,120]
[423135089,1779880524000,228.47970853,0.00014465,120]
[423135090,1779880533000,152.0,0.00014552,30]
[423135165,1779881432000,-582.64718229,7.486e-05,2]
[423135164,1779881432000,-2196.49197564,7.486e-05,2]
[423135166,1779881434000,-586.94081868,7.486e-05,2]
[423135167,1779881434000,-1633.92002339,7.486e-05,2]
[423135168,1779881434000,-194.68149922,7.562e-05,2]
[423135185,1779881438000,-456.7502812,8.934e-05,2]
[423135183,1779881438000,-8471.6836557,7.6e-05,2]
[423135182,1779881438000,-98.92399835,7.562e-05,2]
[423135187,1779881438000,-151.0,8.934e-05,2]
[423135184,1779881438000,-200.369,8.841e-05,2]
[423135188,1779881438000,-456.5629798,8.934e-05,2]
[423135190,1779881438000,-325.7646587,8.934e-05,2]
[423135189,1779881438000,-456.7807192,8.934e-05,2]
[423135192,1779881438000,-485.33582438,9.01e-05,2]
[423135186,1779881438000,-456.7502812,8.934e-05,2]
[423135191,1779881438000,-500.0,9.01e-05,2]
[423135193,1779881438000,-11061.33356331,9.011e-05,2]
[423135194,1779881438000,-90666.55791775,9.011e-05,2]
[423135369,1779881444000,-883.33,9.011e-05,2]
[423135694,1779881447000,-1000.0,9.011e-05,2]
[423136805,1779881492000,-456.7502812,8.934e-05,2]
[423136806,1779881508000,-165.0,7.17e-05,2]
[423136920,1779882634000,-500.0,8.811e-05,2]
[423136901,1779882634000,-218.59076503,8.638e-05,2]
[423136921,1779882634000,-189.73507707,8.811e-05,2]
[423136903,1779882634000,-500.0,8.638e-05,2]
[423136905,1779882634000,-351.93048736,8.638e-05,2]
[423136900,1779882634000,-151.5,8.638e-05,2]
[423136890,1779882634000,-290.73338762,8.375e-05,2]
[423136896,1779882634000,-151.5,8.638e-05,2]
[423136898,1779882634000,-151.5,8.638e-05,2]
[423136892,1779882634000,-151.5,8.638e-05,2]
[423136888,1779882634000,-456.7200949,8.112e-05,2]
[423136922,1779882634000,-186.60639472,8.811e-05,2]
[423136894,1779882634000,-151.5,8.638e-05,2]
[423136919,1779882634000,-500.0,8.811e-05,2]
[423136923,1779882634000,-500.0,8.812e-05,2]
[423136910,1779882634000,-500.0,8.638e-05,2]
[423136927,1779882634000,-500.0,8.812e-05,2]
[423136929,1779882634000,-396.85167834,8.812e-05,2]
[423136916,1779882634000,-179.91836788,8.8e-05,2]
[423136926,1779882634000,-155.86100876,8.812e-05,2]
[423136928,1779882634000,-500.0,8.812e-05,2]
[423136924,1779882634000,-500.0,8.812e-05,2]
[423136925,1779882634000,-500.0,8.812e-05,2]
[423136915,1779882634000,-176.8582464,8.8e-05,2]
[423136918,1779882634000,-216.8664316,8.811e-05,2]
[423136914,1779882634000,-173.67117891,8.8e-05,2]
[423136912,1779882634000,-432.90073873,8.638e-05,2]
[423136913,1779882634000,-159.42725326,8.8e-05,2]
[423136908,1779882634000,-148.06951264,8.638e-05,2]
[423136917,1779882634000,-160.295,8.8e-05,2]
[423136934,1779882635000,-500.0,8.812e-05,2]
[423136935,1779882635000,-500.0,8.812e-05,2]
[423136933,1779882635000,-500.0,8.812e-05,2]
[423136930,1779882635000,-500.0,8.812e-05,2]
[423136931,1779882635000,-500.0,8.812e-05,2]
[423136932,1779882635000,-500.0,8.812e-05,2]
[423136936,1779882635000,-562.43,8.812e-05,2]
[423136937,1779882635000,-560.63,8.812e-05,2]
[423136943,1779882635000,-500.0,8.812e-05,2]
[423136944,1779882635000,-614.46288908,8.812e-05,2]
[423136946,1779882635000,-371.40047928,8.812e-05,2]
[423136941,1779882635000,-500.0,8.812e-05,2]
[423136942,1779882635000,-500.0,8.812e-05,2]
[423136939,1779882635000,-500.0,8.812e-05,2]
[423136940,1779882635000,-500.0,8.812e-05,2]
[423136938,1779882635000,-500.0,8.812e-05,2]
[423136945,1779882635000,-500.0,8.812e-05,2]
[423136968,1779882639000,-14756.56778394,8.812e-05,2]
[423136966,1779882639000,-500.0,8.812e-05,2]
[423136967,1779882639000,-40812.22053636,8.812e-05,2]
[423136969,1779882639000,-706.03531452,8.812e-05,2]
[423136964,1779882639000,-500.0,8.811e-05,2]
[423136965,1779882639000,-128.59952072,8.812e-05,2]
[423137072,1779882641000,-26542.43713687,8.812e-05,2]
[423137070,1779882641000,-500.0,8.812e-05,2]
[423137179,1779882644000,-500.0,8.811e-05,2]
[423137180,1779882644000,-47799.75981897,8.812e-05,2]
[423137221,1779882647000,-253.7425319,8.812e-05,2]
[423137217,1779882647000,-4500.0,8.812e-05,2]
[423137218,1779882647000,-3844.58527827,8.812e-05,2]
[423137219,1779882647000,-2826.19729087,8.812e-05,2]
[423137215,1779882647000,-500.0,8.811e-05,2]
[423137216,1779882647000,-500.0,8.812e-05,2]
[423137220,1779882647000,-927.19930424,8.812e-05,2]
[423137258,1779883273000,-1904.83077204,7.858e-05,2]
[423137259,1779883290000,-287.91871986,7.997e-05,2]
[423137260,1779883307000,-300.0,8.097e-05,2]
[423137261,1779883324000,-456.7502812,8.098e-05,2]
[423137270,1779883341000,-456.7502812,8.098e-05,2]
[423137271,1779883358000,-327.9463139,8.098e-05,2]
[423137272,1779883358000,152.0,0.00014553,30]
[423137274,1779883374000,-456.7502812,8.098e-05,2]
[423137329,1779883834000,-326.065895,8.112e-05,2]
[423137327,1779883834000,-282.16034547,8.105e-05,2]
[423137318,1779883834000,-326.065895,8.098e-05,2]
[423137320,1779883834000,-363.89393054,8.098e-05,2]
[423137331,1779883834000,-219.13285002,8.61e-05,2]
[423137315,1779883834000,-326.065895,7.29e-05,2]
[423137335,1779883834000,-2193.11083625,8.611e-05,2]
[423137337,1779883834000,-425.97873272,8.611e-05,2]
[423137325,1779883834000,-92.85635066,8.098e-05,2]
[423137333,1779883834000,-482.81455395,8.61e-05,2]
[423137540,1779883838000,-7036.85132231,8.611e-05,2]
[423137539,1779883838000,-5297.27270537,8.611e-05,2]
[423137547,1779883840000,-27037.63713687,8.611e-05,2]
[423137546,1779883840000,-7868.10514905,8.611e-05,2]
[423137545,1779883840000,-2193.7,8.611e-05,2]
[423137571,1779883843000,-2432.79447007,8.611e-05,2]
[423137572,1779883843000,-7484.74108838,8.611e-05,2]
[423137575,1779883843000,-760.69687761,8.611e-05,2]
[423137574,1779883843000,-8462.20249191,8.611e-05,2]
[423137573,1779883843000,-1246.62269966,8.611e-05,2]
[423137588,1779883847000,-1278.651535,8.611e-05,2]
[423137587,1779883847000,-500.0,8.61e-05,2]
[423137765,1779885040000,-800.23940382,7.524e-05,2]
[423137767,1779885040000,-280.05713856,8.005e-05,2]
[423137768,1779885040000,-220.27429995,8.096e-05,2]
[423137766,1779885040000,-2504.75857232,7.6e-05,2]
[423137769,1779885040000,-215.34885661,8.41e-05,2]
[423137777,1779885040000,-1062.0,8.41e-05,2]
[423137781,1779885040000,-20064.87935262,8.411e-05,2]
[423137780,1779885040000,-1666.79641534,8.411e-05,2]
[423137772,1779885040000,-500.0,8.41e-05,2]
[423137779,1779885040000,-186.12780589,8.411e-05,2]
[423137782,1779885040000,-12148.74301811,8.411e-05,2]
[423137773,1779885040000,-500.0,8.41e-05,2]
[423137776,1779885040000,-257.09607275,8.41e-05,2]
[423137774,1779885040000,-500.0,8.41e-05,2]
[423137771,1779885040000,-500.0,8.41e-05,2]
[423137770,1779885040000,-337.97018777,8.41e-05,2]
[423137778,1779885040000,-300.0,8.41e-05,2]
[423137775,1779885040000,-479.25189438,8.41e-05,2]
[423137876,1779885047000,-15798.59295793,8.411e-05,2]
[423137903,1779885815000,152.0,0.00014566,30]
[423137927,1779886051000,170.331681,2.774e-05,2]
[423137932,1779886052000,148.341595,4.034e-05,2]
[423137931,1779886052000,170.331681,3.782e-05,2]
[423137930,1779886052000,170.331681,3.53e-05,2]
[423137929,1779886052000,170.331681,3.278e-05,2]
[423137928,1779886052000,170.331681,3.026e-05,2]
[423137934,1779886053000,170.331681,4.286e-05,2]
[423137933,1779886053000,21.990086,4.034e-05,2]
[423137935,1779886053000,170.331681,4.539e-05,2]
[423137936,1779886053000,170.331681,4.791e-05,2]
[423137945,1779886134000,532.985129,5.006e-05,2]
[423137944,1779886134000,1000.0,5.006e-05,2]
[423137942,1779886134000,1000.0,5.006e-05,2]
[423137943,1779886134000,1000.0,5.006e-05,2]
[423137941,1779886134000,1000.0,5.006e-05,2]
[423137940,1779886134000,467.014871,5.006e-05,2]
[423137948,1779886143000,1000.0,5.006e-05,2]
[423137947,1779886143000,467.014871,5.006e-05,2]
[423137949,1779886145000,-606.4168751,5.006e-05,2]
[423137950,1779886147000,-520.47749565,5.006e-05,2]
[423137953,1779886151000,188.74303128,5.005e-05,2]
[423137954,1779886155000,-377.41967901,5.006e-05,2]
[423137955,1779886156000,-500.0,5.006e-05,2]
[423137956,1779886158000,5000.0,5.005e-05,2]
[423137957,1779886159000,-500.0,5.006e-05,2]
[423137975,1779886176000,-500.00215383,5.006e-05,2]
[423137976,1779886178000,-500.0,5.006e-05,2]
[423137977,1779886180000,3397.89932849,5.005e-05,2]
[423138068,1779886232000,-170.331681,5.547e-05,2]
[423138066,1779886232000,-600.0,5.486e-05,2]
[423138064,1779886232000,-300.0,5.379e-05,2]
[423138060,1779886232000,-300.0,5.379e-05,2]
[423138052,1779886232000,-300.0,5.379e-05,2]
[423138042,1779886232000,-300.0,5.379e-05,2]
[423138050,1779886232000,-300.0,5.379e-05,2]
[423138058,1779886232000,-300.0,5.379e-05,2]
[423138056,1779886232000,-300.0,5.379e-05,2]
[423138054,1779886232000,-300.0,5.379e-05,2]
[423138046,1779886232000,-300.0,5.379e-05,2]
[423138044,1779886232000,-300.0,5.379e-05,2]
[423138062,1779886232000,-300.0,5.379e-05,2]
[423138038,1779886232000,-300.0,5.379e-05,2]
[423138036,1779886232000,-300.0,5.379e-05,2]
[423138034,1779886232000,-300.0,5.379e-05,2]
[423138032,1779886232000,-170.331681,5.295e-05,2]
[423138028,1779886232000,-1200.0,5.274e-05,2]
[423138023,1779886232000,-300.0,5.274e-05,2]
[423138026,1779886232000,-300.0,5.274e-05,2]
[423138030,1779886232000,-13144.9694145,5.275e-05,2]
[423138019,1779886232000,-280.99599579,5.169e-05,2]
[423138025,1779886232000,-300.0,5.274e-05,2]
[423138021,1779886232000,-300.0,5.274e-05,2]
[423138017,1779886232000,-170.331681,5.043e-05,2]
[423138015,1779886232000,-28.66892541,5.006e-05,2]
[423138070,1779886232000,-420.0,5.801e-05,2]
[423138040,1779886232000,-300.0,5.379e-05,2]
[423138072,1779886232000,-420.0,5.801e-05,2]
[423138131,1779886232000,-2867.78413998,8.027e-05,2]
[423138074,1779886232000,-420.0,5.801e-05,2]
[423138133,1779886232000,-908.06644971,8.027e-05,2]
[423138125,1779886232000,-548.04021054,8.027e-05,2]
[423138123,1779886232000,-1006.81783792,8.027e-05,2]
[423138129,1779886232000,-23135.61960596,8.027e-05,2]
[423138119,1779886232000,-3148.25057694,8.027e-05,2]
[423138127,1779886232000,-2356.96132093,8.027e-05,2]
[423138117,1779886232000,-62.99278924,8e-05,2]
[423138114,1779886232000,-113.00555785,8e-05,2]
[423138113,1779886232000,-1000.0,7.301e-05,2]
[423138111,1779886232000,-331.57527503,7.169e-05,2]
[423138107,1779886232000,-1497.0,7.02e-05,2]
[423138105,1779886232000,-423.0,7.02e-05,2]
[423138109,1779886232000,-151.0,7.144e-05,2]
[423138101,1779886232000,-261.0,7.02e-05,2]
[423138099,1779886232000,-250.0,6.898e-05,2]
[423138097,1779886232000,-3720.4790188,6.676e-05,2]
[423138095,1779886232000,-864.0,6.638e-05,2]
[423138103,1779886232000,-823.0,7.02e-05,2]
[423138093,1779886232000,-151.0,6.5e-05,2]
[423138091,1779886232000,-2351.0,6.382e-05,2]
[423138090,1779886232000,-587.0,6.382e-05,2]
[423138085,1779886232000,-587.0,6.382e-05,2]
[423138083,1779886232000,-587.0,6.382e-05,2]
[423138087,1779886232000,-280.0,6.382e-05,2]
[423138080,1779886232000,-720.0,6.034e-05,2]
[423138081,1779886232000,-189.27047324,6.043e-05,2]
[423138078,1779886232000,-1680.0,5.801e-05,2]
[423138121,1779886232000,-438.23496928,8.027e-05,2]
[423138076,1779886232000,-420.0,5.801e-05,2]
[423138251,1779886238000,-14318.7896106,8.027e-05,2]
[423138259,1779886238000,-18053.11520079,8.027e-05,2]
[423138920,1779886243000,-1236.39766523,8.027e-05,2]
[423138905,1779886243000,-1907.38,8e-05,2]
[423138907,1779886243000,-1596.93620359,8.027e-05,2]
[423138935,1779886244000,-837.39398754,8.027e-05,2]
[423138931,1779886244000,-36376.32891739,8.027e-05,2]
[423138954,1779886245000,-500.0,8.219e-05,2]
[423138955,1779886245000,-500.0,8.219e-05,2]
[423138956,1779886245000,-500.0,8.219e-05,2]
[423138969,1779886245000,-500.0,8.219e-05,2]
[423138968,1779886245000,-500.38258745,8.219e-05,2]
[423138970,1779886245000,-2088.54,8.219e-05,2]
[423138944,1779886245000,-500.0,8.219e-05,2]
[423138959,1779886245000,-500.0,8.219e-05,2]
[423138961,1779886245000,-500.0,8.219e-05,2]
[423138958,1779886245000,-500.0,8.219e-05,2]
[423138951,1779886245000,-500.0,8.219e-05,2]
[423138949,1779886245000,-500.0,8.219e-05,2]
[423138950,1779886245000,-500.0,8.219e-05,2]
[423138966,1779886245000,-500.0,8.219e-05,2]
[423138946,1779886245000,-500.0,8.219e-05,2]
[423138947,1779886245000,-500.0,8.219e-05,2]
[423138945,1779886245000,-500.0,8.219e-05,2]
[423138948,1779886245000,-500.0,8.219e-05,2]
[423138943,1779886245000,-500.0,8.219e-05,2]
[423138940,1779886245000,-1000.0,8.031e-05,2]
[423138941,1779886245000,-244.0,8.031e-05,2]
[423138942,1779886245000,-41472.25865107,8.127e-05,2]
[423138939,1779886245000,-618627.67796134,8.027e-05,2]
[423138953,1779886245000,-500.0,8.219e-05,2]
[423138962,1779886245000,-500.0,8.219e-05,2]
[423138952,1779886245000,-500.0,8.219e-05,2]
[423138960,1779886245000,-635.31864929,8.219e-05,2]
[423138967,1779886245000,-500.0,8.219e-05,2]
[423138991,1779886245000,-500.0,8.309e-05,2]
[423138990,1779886245000,-500.0,8.309e-05,2]
[423138989,1779886245000,-271.52403436,8.309e-05,2]
[423138986,1779886245000,-601.94,8.309e-05,2]
[423138987,1779886245000,-500.0,8.309e-05,2]
[423138988,1779886245000,-481.30596564,8.309e-05,2]
[423138985,1779886245000,-606.56,8.309e-05,2]